fUSD/lending_fUSD_20260316
["ID","MTS","AMOUNT","RATE_DAILY","PERIOD"]
[408437658,1773619356836,8836.11,9.5e-05,3]
[408437659,1773619356858,10000.01,9.5e-05,3]
[408437660,1773619356880,10000.01,9.5e-05,3]
[408437661,1773619356902,10000.01,9.5e-05,3]
[408437662,1773619356924,4899.31063692,9.5e-05,3]
[408437663,1773619388329,3437.066734,7.945e-05,2]
[408437668,1773619756479,24941.15672365,8e-05,10]
[408437669,1773619756503,6562.943266,8e-05,10]
[408437670,1773619756527,10000.01,8e-05,10]
[408437671,1773619756549,10000.01,8e-05,10]
[408437672,1773619756755,10000.01,8e-05,10]
[408437673,1773619756778,10000.01,8e-05,10]
[408437674,1773619756801,10000.01,8e-05,10]
[408437675,1773619756823,10000.01,8e-05,10]
[408437676,1773619756846,10000.01,8e-05,10]
[408437677,1773619756868,10000.01,8e-05,10]
[408437678,1773619756890,10000.01,8e-05,10]
[408437679,1773619756916,13700.0,8e-05,10]
[408437680,1773619756944,98573.0,8e-05,10]
[408437681,1773619756970,981.25540625,8e-05,10]
[408437682,1773619756992,1151.25540625,8e-05,10]
[408437683,1773619757015,1151.25540625,8e-05,10]
[408437684,1773619757037,1151.25540625,8e-05,10]
[408437685,1773619757059,1151.25540625,8e-05,10]
[408437686,1773619757082,1151.25540625,8e-05,10]
[408437687,1773619757103,1151.25540625,8e-05,10]
[408437688,1773619757125,1151.25540625,8e-05,10]
[408437689,1773619757150,1151.25540625,8e-05,10]
[408437690,1773619757171,1151.25540625,8e-05,10]
[408437691,1773619757197,99478.49385007,8e-05,10]
[408437692,1773619757220,432.48242788,8e-05,10]
[408437704,1773619832198,-300.0,0.00014599,2]
[408437705,1773619832210,-900.0,0.00014599,2]
[408437706,1773619832220,-9039.0,0.000146,2]
[408437707,1773619832231,-250.0,0.00015,2]
[408437708,1773619832240,-371.07,0.00015111,2]
[408437709,1773619832249,-5533.0,0.000157,3]
[408437710,1773619832259,-5540.38071522,0.000162,5]
[408437711,1773619832268,-219.6475,0.000165,2]
[408437712,1773619832277,-5533.0,0.000168,5]
[408437713,1773619832286,-1613.2514307,0.00017,2]
[408437714,1773619832295,-506.0,0.00017,2]
[408437715,1773619832304,-238.48,0.00017491,2]
[408437716,1773619832314,-403.0,0.000177,5]
[408437717,1773619832323,-200.0,0.00017888,2]
[408437718,1773619832332,-550.0,0.00017999,2]
[408437721,1773619832551,-37014.66034465,0.00018,2]
[408437722,1773619832561,-553.63323061,0.000186,2]
[408437723,1773619832570,-850.65896664,0.000186,2]
[408437724,1773619832579,-500.0,0.000186,2]
[408437725,1773619832589,-500.0,0.00018685,2]
[408437726,1773619832598,-157.1,0.00018688,2]
[408437727,1773619832607,-200.0,0.00018688,2]
[408437728,1773619832616,-657.19,0.00018936,2]
[408437729,1773619832626,-2500.0,0.00018967,2]
[408437730,1773619832635,-234.27853788,0.00018979,2]
[408437731,1773619832645,-2966.46751989,0.00018979,2]
[408437733,1773619832654,-153.24636795,0.00018979,2]
[408437734,1773619832663,-4190.0,0.00019,2]
[408437735,1773619832673,-456.20284495,0.00019,2]
[408437736,1773619832682,-1500.0,0.00019003,2]
[408437737,1773619832691,-1058.64999987,0.00019055,2]
[408437738,1773619832701,-200.0,0.00019055,2]
[408437739,1773619832710,-151.0,0.00019055,2]
[408437740,1773619832721,-151.0,0.00019055,2]
[408437741,1773619832730,-151.0,0.00019055,2]
[408437742,1773619832740,-151.0,0.00019055,2]
[408437743,1773619832749,-151.0,0.00019055,2]
[408437744,1773619832759,-151.0,0.00019055,2]
[408437745,1773619832768,-151.0,0.00019055,2]
[408437746,1773619832777,-151.0,0.00019055,2]
[408437747,1773619832786,-151.0,0.00019055,2]
[408437748,1773619832795,-151.0,0.00019055,2]
[408437749,1773619832804,-151.0,0.00019055,2]
[408437750,1773619832814,-151.0,0.00019055,2]
[408437751,1773619832823,-151.0,0.00019055,2]
[408437752,1773619832833,-151.0,0.00019055,2]
[408437753,1773619832843,-151.0,0.00019055,2]
[408437754,1773619832852,-151.0,0.00019055,2]
[408437755,1773619832861,-151.0,0.00019055,2]
[408437756,1773619832872,-151.0,0.00019055,2]
[408437757,1773619832881,-151.0,0.00019055,2]
[408437758,1773619832890,-151.0,0.00019055,2]
[408437759,1773619832903,-693.56,0.00019057,3]
[408437760,1773619832912,-5000.0,0.00019065,2]
[408437761,1773619832922,-265.1719086,0.00019066,2]
[408437762,1773619832931,-153.26467566,0.00019066,2]
[408437763,1773619832941,-478.42831953,0.00019066,2]
[408437764,1773619832950,-500.0,0.00019066,2]
[408437765,1773619832959,-500.0,0.00019066,2]
[408437766,1773619832968,-500.0,0.00019066,2]
[408437767,1773619832977,-500.0,0.00019066,2]
[408437768,1773619832988,-500.0,0.00019066,2]
[408437769,1773619832996,-500.0,0.00019066,2]
[408437770,1773619833005,-500.0,0.00019066,2]
[408437771,1773619833014,-500.0,0.00019066,2]
[408437772,1773619833023,-500.0,0.00019066,2]
[408437773,1773619833032,-500.0,0.00019066,2]
[408437774,1773619833041,-159.52248577,0.00019066,2]
[408437775,1773619833051,-500.0,0.00019066,2]
[408437776,1773619833060,-500.0,0.00019066,2]
[408437777,1773619833069,-500.0,0.00019066,2]
[408437778,1773619833079,-500.0,0.00019066,2]
[408437779,1773619833090,-500.0,0.00019066,2]
[408437780,1773619833099,-500.0,0.00019066,2]
[408437781,1773619833109,-500.0,0.00019066,2]
[408437782,1773619833118,-500.0,0.00019066,2]
[408437783,1773619833127,-500.0,0.00019066,2]
[408437784,1773619833136,-500.0,0.00019066,2]
[408437785,1773619833146,-500.0,0.00019066,2]
[408437786,1773619833156,-501.88920658,0.00019066,2]
[408437787,1773619833171,-500.0,0.00019066,2]
[408437788,1773619833180,-504.98137836,0.00019066,2]
[408437789,1773619833190,-257.0,0.00019079,2]
[408437790,1773619833202,-2966.46751987,0.00019081,2]
[408437791,1773619833211,-153.24636789,0.00019111,2]
[408437792,1773619833221,-1768.1952,0.00019147,2]
[408437793,1773619833231,-2966.46751987,0.00019184,2]
[408437794,1773619833242,-153.24636789,0.00019242,2]
[408437795,1773619833252,-500.0,0.00019247,2]
[408437796,1773619833262,-500.0,0.00019247,2]
[408437797,1773619833271,-500.0,0.00019247,2]
[408437798,1773619833280,-502.23147236,0.00019247,2]
[408437799,1773619833290,-510.91763486,0.00019247,2]
[408437800,1773619833303,-2966.46751987,0.00019286,2]
[408437801,1773619833312,-153.24636789,0.00019374,2]
[408437802,1773619833322,-2966.46751987,0.00019388,2]
[408437803,1773619833332,-2966.46751987,0.00019491,2]
[408437804,1773619833342,-2000.0,0.000195,2]
[408437805,1773619833351,-153.24636789,0.00019505,2]
[408437806,1773619833362,-894.8322414,0.00019556,2]
[408437807,1773619833371,-271.95996386,0.00019575,2]
[408437808,1773619833381,-2966.46751987,0.00019593,2]
[408437809,1773619833391,-2966.46751987,0.00019695,2]
[408437810,1773619833401,-500.0,0.00019699,2]
[408437811,1773619833411,-150.0,0.00019699,2]
[408437812,1773619833420,-500.0,0.00019754,2]
[408437813,1773619833429,-1000.0,0.00019782,2]
[408437814,1773619833439,-2966.46751987,0.00019798,2]
[408437815,1773619833448,-500.0,0.00019809,2]
[408437816,1773619833457,-500.0,0.00019863,2]
[408437817,1773619833467,-5800.0,0.00019883,2]
[408437818,1773619833476,-5800.0,0.00019892,2]
[408437819,1773619833486,-1000.0,0.00019896,2]
[408437820,1773619833495,-1000.0,0.00019896,2]
[408437821,1773619833505,-1000.0,0.00019896,2]
[408437822,1773619833514,-926.801,0.00019896,2]
[408437823,1773619833524,-5800.0,0.000199,2]
[408437824,1773619833533,-5000.0,0.000199,2]
[408437825,1773619833543,-5672.47899843,0.000199,2]
[408437826,1773619833552,-2966.46751987,0.000199,2]
[408437827,1773619833561,-500.0,0.00019918,2]
[408437828,1773619833570,-1304.0,0.00019973,2]
[408437829,1773619833580,-500.0,0.00019973,2]
[408437830,1773619833589,-370.44259252,0.00019979,2]
[408437831,1773619833599,-500.0,0.00019979,2]
[408437832,1773619833608,-333.68726859,0.00019979,2]
[408437833,1773619833617,-534.45495622,0.00019979,2]
[408437834,1773619833626,-500.0,0.00019979,2]
[408437835,1773619833636,-432.23132419,0.00019979,2]
[408437836,1773619833646,-5115.01153277,0.0001998,2]
[408437837,1773619833659,-19799.60864051,0.0001998,2]
[408437838,1773619833671,-1313.93222255,0.0001998,2]
[408437839,1773619833686,-1167.00146,0.0001998,2]
[408437843,1773619838266,-153.24636789,0.00019637,2]
[408437844,1773619838277,-1303.99066491,0.0001998,2]
[408437845,1773619838522,-445.55328584,0.0001998,2]
[408437846,1773619838572,-325.02024,0.0001998,2]
[408437858,1773619840458,-1000.0,0.00018967,2]
[408437859,1773619840468,-523.12,0.00019066,2]
[408437860,1773619840479,-4213.16725334,0.0001998,2]
[408437861,1773619840490,-544.98910334,0.0001998,2]
[408437863,1773619840959,-430.13731393,0.0001998,2]
[408437867,1773619843449,-26.24593467,0.00019768,2]
[408437868,1773619843461,-127.00043322,0.00019768,2]
[408437869,1773619843472,-461.10877679,0.0001998,2]
[408437884,1773619846097,-153.24636789,0.000199,2]
[408437885,1773619846107,-769.75363211,0.0001998,2]
[408437886,1773619846170,-631.71392911,0.0001998,2]
[408437887,1773619846414,-1853.07682859,0.0001998,2]
[408437888,1773619846424,-548.397891,0.00019983,2]
[408437889,1773619846433,-10451.27524575,0.00019983,2]
[408437890,1773619846445,-398.63540176,0.00019983,2]
[408437891,1773619846461,-5323.07150529,0.00019983,2]
[408437892,1773619846499,-365.63092625,0.00019983,2]
[408437953,1773621032352,-267.32899066,0.0001695,2]
[408437954,1773621032362,-250.0,0.00016963,2]
[408437955,1773621032371,-289.41103785,0.00016963,2]
[408437956,1773621032380,-604.48334225,0.00016975,2]
[408437957,1773621032390,-229.44835913,0.00017,2]
[408437958,1773621032401,-276.55164087,0.00017,2]
[408437959,1773621032410,-166.66,0.00017015,2]
[408437960,1773621032419,-250.0,0.00017063,2]
[408437961,1773621032428,-166.66,0.00017373,2]
[408437962,1773621032440,-166.66,0.00017732,2]
[408437963,1773621032450,-166.66,0.0001809,2]
[408437964,1773621032460,-601.28586244,0.00018157,2]
[408437965,1773621032471,-364.24855289,0.00018157,2]
[408437966,1773621032482,-1034.46558467,0.00018157,2]
[408437967,1773621032491,-166.66,0.00018448,2]
[408437968,1773621032500,-190.78,0.00018475,2]
[408437969,1773621032508,-1200.0,0.00018499,2]
[408437970,1773621032518,-250.30641366,0.000185,2]
[408437971,1773621032528,-250.30641364,0.000185,2]
[408437972,1773621032538,-250.30641364,0.000185,2]
[408437973,1773621032547,-500.0,0.00018588,2]
[408437974,1773621032556,-23.44296569,0.00018645,2]
[408437975,1773621032572,-1005.3639732,0.00018645,2]
[408437976,1773621032583,-284.15203215,0.00018645,2]
[408437977,1773621032594,-500.0,0.00018645,2]
[408437979,1773621032606,-3144.98623416,0.00018645,2]
[408437981,1773621032615,-2500.0,0.00018645,2]
[408437983,1773621032625,-193.0,0.00018645,2]
[408437985,1773621032634,-250.0,0.00018645,2]
[408437987,1773621032643,-300.0,0.00018645,2]
[408437989,1773621032652,-195.0,0.00018645,2]
[408437991,1773621032661,-2500.0,0.00018667,2]
[408437993,1773621032671,-1777.31902408,0.00018673,2]
[408437994,1773621032680,-1070.79,0.00018688,2]
[408437995,1773621032690,-1852.42,0.00018688,2]
[408437996,1773621032700,-500.0,0.00018688,2]
[408437997,1773621032710,-3240.0,0.00018688,2]
[408437998,1773621032720,-2503.69656434,0.00018765,2]
[408437999,1773621032729,-500.0,0.00018766,2]
[408438000,1773621032738,-295.50249842,0.00018766,2]
[408438001,1773621032748,-171.40613236,0.00018766,2]
[408438002,1773621032757,-500.0,0.00018766,2]
[408438003,1773621032766,-352.77954664,0.00018766,2]
[408438004,1773621032779,-147.22045336,0.00018766,2]
[408438005,1773621032788,-91960.25062329,0.00018767,2]
[408438006,1773621032799,-17634.21223678,0.00018767,2]
[408438007,1773621032813,-418.14006452,0.00018767,2]
[408438008,1773621032824,-271.90586894,0.00018767,2]
[408438009,1773621032835,-3290.25736725,0.00018767,2]
[408438010,1773621032846,-787.75339574,0.00018767,2]
[408438011,1773621032866,-1552.98,0.00018767,2]
[408438017,1773621038355,-7058.45,0.00018767,2]
[408438018,1773621038366,-2113.9739741,0.00018767,2]
[408438019,1773621038458,-500.46164538,0.00018767,2]
[408438020,1773621038470,-367.12957871,0.00018767,2]
[408438021,1773621038482,-4478.11544268,0.00018767,2]
[408438022,1773621038493,-5827.30589347,0.00018767,2]
[408438023,1773621038505,-2978.10007601,0.00018767,2]
[408438024,1773621038557,-1001.26196048,0.00018767,2]
[408438041,1773621040615,-362.715,0.00018767,2]
[408438042,1773621040626,-753.815,0.00018767,2]
[408438050,1773621044358,-707.48499536,0.00018767,2]
[408438051,1773621044487,-7917.00430152,0.00018767,2]
[408438052,1773621044498,-72546.99209807,0.00018767,2]
[408438063,1773621044619,-12479.45938457,0.00018767,2]
[408438082,1773621046291,-14514.25968908,0.00018767,2]
[408438083,1773621046306,-3000.0,0.00018767,2]
[408438084,1773621046317,-632.162886,0.00018767,2]
[408438087,1773621503047,674.18,8.951e-05,2]
[408438088,1773621503170,674.18,9.422e-05,2]
[408438089,1773621503380,674.18,9.893e-05,2]
[408438090,1773621503592,674.18,0.00010364,2]
[408438091,1773621503793,674.18,0.00010835,2]
[408438092,1773621503988,674.18,0.00011306,2]
[408438093,1773621569286,170.26,0.00011,2]
[408438094,1773621670965,197.0,0.0002,120]
[408438095,1773622098438,478.99607958,0.00011685,2]
[408438096,1773622161243,-674.18,0.00011778,2]
[408438097,1773622161263,-153.00576923,0.00011778,2]
[408438107,1773622231462,-674.18,0.00012249,2]
[408438108,1773622231472,-674.18,0.0001272,2]
[408438109,1773622231481,-250.0,0.00012955,2]
[408438110,1773622231491,-674.18,0.00013191,2]
[408438111,1773622231501,-674.18,0.00013662,2]
[408438112,1773622231510,-125.09881226,0.00014133,2]
[408438113,1773622231570,-549.08118774,0.00014133,2]
[408438114,1773622231580,-674.18,0.00014604,2]
[408438115,1773622231589,-674.18,0.00015075,2]
[408438116,1773622231599,-500.0,0.00015342,2]
[408438117,1773622231609,-200.0,0.000155,2]
[408438118,1773622231619,-674.18,0.00015546,2]
[408438120,1773622231628,-191.26,0.00015741,2]
[408438121,1773622231642,-1200.0,0.00015835,2]
[408438122,1773622231652,-500.0,0.00015836,2]
[408438123,1773622231661,-674.18,0.00016017,2]
[408438124,1773622231671,-2000.0,0.00016117,2]
[408438125,1773622231680,-157.67,0.00016168,2]
[408438126,1773622231689,-150.0,0.00016483,2]
[408438127,1773622231699,-674.18,0.00016489,2]
[408438128,1773622231707,-1500.0,0.0001666,2]
[408438129,1773622231716,-674.18,0.0001696,2]
[408438130,1773622231726,-461.66,0.00017118,2]
[408438131,1773622231735,-3905.92,0.00017312,2]
[408438132,1773622231746,-1680.0,0.00017403,2]
[408438133,1773622231754,-674.18,0.00017431,2]
[408438134,1773622231763,-674.18,0.00017902,2]
[408438135,1773622231772,-210.58,0.00018384,2]
[408438136,1773622231782,-4245.6,0.00018397,2]
[408438137,1773622231791,-2217.05,0.00018401,2]
[408438138,1773622231800,-1487.36166834,0.00018558,2]
[408438139,1773622231809,-2339.07721601,0.00018558,2]
[408438140,1773622231818,-500.0,0.00018566,2]
[408438141,1773622231827,-500.0,0.00018566,2]
[408438142,1773622231836,-500.0,0.00018566,2]
[408438143,1773622231847,-500.0,0.00018566,2]
[408438144,1773622231858,-507.50732285,0.00018566,2]
[408438145,1773622231867,-500.0,0.00018566,2]
[408438146,1773622231875,-500.0,0.00018566,2]
[408438147,1773622231885,-359861.4904,0.00018567,2]
[408438148,1773622231895,-458.7994331,0.00018658,2]
[408438149,1773622231906,-233.58108802,0.00018658,2]
[408438150,1773622231917,-500.0,0.00018658,2]
[408438151,1773622231928,-574.11846935,0.00018658,2]
[408438152,1773622231937,-259.30981476,0.00018658,2]
[408438153,1773622231947,-555.92,0.00018658,2]
[408438154,1773622231956,-500.0,0.00018658,2]
[408438155,1773622231966,-500.0,0.00018658,2]
[408438156,1773622231976,-500.0,0.00018658,2]
[408438157,1773622231985,-500.0,0.00018658,2]
[408438158,1773622231994,-267.83137557,0.00018658,2]
[408438159,1773622232002,-500.0,0.00018658,2]
[408438160,1773622232011,-105215.57755514,0.00018659,2]
[408438166,1773622237615,-299.48482038,0.00018659,2]
[408438167,1773622237628,-504.12462088,0.00018659,2]
[408438168,1773622237641,-1449.96,0.00018659,2]
[408438174,1773622239752,-362.705,0.00018659,2]
[408438176,1773622242891,-1169.49058916,0.00018659,2]
[408438205,1773622416683,408.69934687,0.00011685,2]
[408438206,1773622635814,2059.59385993,0.00011685,2]
[408438207,1773622695969,2706.49911918,0.00011685,2]
[408438208,1773622695999,2729.55164584,0.00011685,2]
[408438209,1773622696044,2504.36537505,0.00011685,2]
[408438210,1773622696071,6175.27524973,0.00011685,2]
[408438211,1773622714420,3824.73475027,0.00011685,2]
[408438212,1773622714443,6175.26524973,0.00011685,2]
[408438213,1773622723258,3824.74475027,0.00011685,2]
[408438214,1773622723279,6175.25524973,0.00011685,2]
[408438215,1773622731342,10000.0,0.00011685,2]
[408438216,1773622731874,0.01,0.00011685,2]
[408438217,1773622731893,347.38444484,0.00011685,2]
[408438218,1773622739879,9652.62555516,0.00011685,2]
[408438219,1773622739900,347.37444484,0.00011685,2]
[408438220,1773622775485,570.0,0.00011685,2]
[408438221,1773622801882,9082.63555516,8e-05,2]
[408438222,1773622801905,3716.00316411,8e-05,2]
[408438227,1773623004773,-20000.0,9.5e-05,3]
[408438228,1773623008440,-7811.0227584,9.5e-05,3]
[408438229,1773623008589,-10000.01,9.5e-05,3]
[408438230,1773623010265,-10000.01,9.5e-05,3]
[408438231,1773623010421,-10000.01,9.5e-05,3]
[408438232,1773623010583,-10000.01,9.5e-05,3]
[408438233,1773623010812,-10000.01,9.5e-05,3]
[408438234,1773623010926,-10000.01,9.5e-05,3]
[408438235,1773623011073,-10000.01,9.5e-05,3]
[408438236,1773623011273,-10000.01,9.5e-05,3]
[408438237,1773623016363,-10000.01,9.5e-05,3]
[408438238,1773623016483,-10000.01,9.5e-05,3]
[408438239,1773623025398,-10000.01,9.5e-05,3]
[408438240,1773623025588,-10000.01,9.5e-05,3]
[408438241,1773623025699,-10000.01,9.5e-05,3]
[408438242,1773623025812,-10000.01,9.5e-05,3]
[408438243,1773623025944,-10000.01,9.5e-05,3]
[408438244,1773623032430,-10000.01,9.5e-05,3]
[408438245,1773623032537,-10000.01,9.5e-05,3]
[408438246,1773623032771,-10000.01,9.5e-05,3]
[408438247,1773623039540,-10000.01,9.5e-05,3]
[408438248,1773623039792,-10000.01,9.5e-05,3]
[408438249,1773623039896,-10000.01,9.5e-05,3]
[408438250,1773623042568,-10000.01,9.5e-05,3]
[408438251,1773623042791,-10000.01,9.5e-05,3]
[408438252,1773623048435,3437.066734,7.945e-05,2]
[408438253,1773623048467,-10000.01,9.5e-05,3]
[408438254,1773623048593,-10000.01,9.5e-05,3]
[408438255,1773623048692,-10000.01,9.5e-05,3]
[408438256,1773623048815,-10000.01,9.5e-05,3]
[408438257,1773623057652,-4674.80983397,9.5e-05,3]
[408438258,1773623057680,-650.39033206,9.5e-05,3]
[408438261,1773623183040,10000.0,0.0002,120]
[408438262,1773623199378,10000.0,0.0002,120]
[408438264,1773623215517,10000.0,0.0002,120]
[408438265,1773623232516,10000.0,0.0002,120]
[408438266,1773623362113,-155.0,9.5e-05,3]
[408438267,1773623362137,-227.0,9.5e-05,3]
[408438268,1773623362156,-205.0,9.8e-05,2]
[408438269,1773623362177,-86.11881598,0.000101,2]
[408438273,1773623431598,-155.0,9.5e-05,3]
[408438275,1773623431609,-216.0,9.5e-05,3]
[408438276,1773623431619,-175.0553794,0.000101,2]
[408438277,1773623431629,-233.0,0.000101,2]
[408438278,1773623431639,-250.0,0.0001111,2]
[408438279,1773623431649,-335.6945387,0.0001111,2]
[408438280,1773623431658,-216.0,0.00011632,3]
[408438281,1773623431668,-2228.43342063,0.00012298,2]
[408438282,1773623431679,-593.43540622,0.00012312,2]
[408438283,1773623431694,-327.89186464,0.00012312,2]
[408438284,1773623431710,-871.63914186,0.00012312,2]
[408438285,1773623431719,-216.0,0.00013763,3]
[408438286,1773623431729,-153.0,0.00014205,2]
[408438287,1773623431739,-309.22,0.00014708,2]
[408438288,1773623431748,-250.0,0.00015,2]
[408438289,1773623431758,-922.0,0.000152,3]
[408438290,1773623431767,-1200.0,0.00015499,2]
[408438291,1773623431777,-300.0,0.00015499,2]
[408438292,1773623431787,-5533.0,0.000155,5]
[408438293,1773623431796,-300.0,0.00015699,2]
[408438294,1773623431806,-1320.55850111,0.00015722,2]
[408438295,1773623431816,-216.0,0.00015895,3]
[408438296,1773623431826,-1454.35,0.00016063,2]
[408438297,1773623431837,-200.0,0.00016063,2]
[408438298,1773623431847,-500.0,0.00016063,2]
[408438299,1773623431858,-2000.0,0.00016063,2]
[408438300,1773623431868,-150.0,0.00016099,2]
[408438301,1773623431877,-500.0,0.000161,2]
[408438302,1773623431888,-155.0,0.0001625,3]
[408438303,1773623431897,-500.0,0.000164,2]
[408438304,1773623431907,-500.54635971,0.000164,2]
[408438305,1773623431918,-500.0,0.000164,2]
[408438306,1773623431927,-500.0,0.000164,2]
[408438307,1773623431937,-500.0,0.000164,2]
[408438308,1773623431946,-534.29920634,0.00016648,2]
[408438309,1773623431955,-166.79,0.00016712,2]
[408438310,1773623431964,-1982.31959049,0.00016719,2]
[408438311,1773623431974,-9564.11,0.00016898,2]
[408438312,1773623431983,-1000.0,0.00016948,2]
[408438313,1773623431992,-1000.0,0.00016948,2]
[408438314,1773623432001,-1000.0,0.00016948,2]
[408438315,1773623432011,-1000.0,0.00016948,2]
[408438316,1773623432020,-231.07185,0.00017,2]
[408438317,1773623432030,-1680.0,0.0001704,2]
[408438318,1773623432039,-500.0,0.00017496,2]
[408438319,1773623432053,-505.31912493,0.00017496,2]
[408438320,1773623432063,-1500.0,0.00017496,2]
[408438321,1773623432072,-200.0,0.00017669,2]
[408438322,1773623432081,-800.0,0.00017808,2]
[408438323,1773623432091,-3676.8831783,0.00017823,2]
[408438324,1773623432100,-200.0,0.000179,6]
[408438325,1773623432109,-13461.28537283,0.00018,5]
[408438326,1773623432118,-1959.56597553,0.00018,2]
[408438327,1773623432127,-500.0,0.00018026,3]
[408438328,1773623432138,-216.0,0.00018026,3]
[408438329,1773623432148,-2000.0,0.00018071,2]
[408438330,1773623432158,-773.0,0.00018139,2]
[408438331,1773623432167,-2233.44141448,0.00018267,2]
[408438332,1773623432177,-102305.4967,0.00018297,2]
[408438333,1773623432187,-172.04980842,0.000183,2]
[408438334,1773623432198,-500.0,0.000183,3]
[408438335,1773623432208,-10387.73902324,0.00018367,2]
[408438336,1773623432218,-773.0,0.00018397,2]
[408438337,1773623432227,-2233.44141442,0.00018448,2]
[408438338,1773623432238,-168.0,0.00018453,2]
[408438339,1773623432251,-217.87,0.00018457,2]
[408438340,1773623432260,-217.87,0.00018457,2]
[408438341,1773623432270,-217.87,0.00018457,2]
[408438342,1773623432280,-217.87,0.00018457,2]
[408438343,1773623432289,-217.87,0.00018457,2]
[408438344,1773623432299,-500.0,0.00018466,2]
[408438345,1773623432308,-251.88292854,0.00018466,2]
[408438346,1773623432319,-404.99478788,0.00018466,2]
[408438347,1773623432329,-163.50676161,0.00018466,2]
[408438348,1773623432338,-240.96622191,0.00018466,2]
[408438349,1773623432349,-500.0,0.00018466,2]
[408438350,1773623432358,-500.0,0.00018466,2]
[408438351,1773623432368,-500.0,0.00018466,2]
[408438352,1773623432377,-500.0,0.00018466,2]
[408438353,1773623432387,-500.0,0.00018466,2]
[408438354,1773623432396,-500.0,0.00018466,2]
[408438355,1773623432406,-500.0,0.00018466,2]
[408438356,1773623432415,-500.0,0.00018466,2]
[408438357,1773623432425,-500.0,0.00018466,2]
[408438358,1773623432434,-500.0,0.00018466,2]
[408438359,1773623432443,-500.0,0.00018466,2]
[408438360,1773623432453,-500.0,0.00018466,2]
[408438361,1773623432462,-500.0,0.00018466,2]
[408438362,1773623432471,-515.52448038,0.00018466,2]
[408438363,1773623432480,-3650.0,0.00018466,5]
[408438364,1773623432490,-57020.36889237,0.00018467,2]
[408438365,1773623432502,-15356.23918823,0.00018467,2]
[408438366,1773623432514,-483.83701994,0.00018467,2]
[408438368,1773623437765,-165.5,0.00016063,2]
[408438369,1773623437775,-342.68649946,0.00018467,2]
[408438370,1773623437788,-1019.68831389,0.00018467,2]
[408438371,1773623437799,-2746.33337659,0.00018467,2]
[408438372,1773623437817,-1395.13885906,0.00018467,2]
[408438394,1773623439975,-367.31712134,0.00018467,2]
[408438399,1773623443102,-12437.81601248,0.00018467,2]
[408438414,1773623445680,-3700.0,0.00018467,2]
[408438415,1773623446155,-21700.63410715,0.00018467,2]
[408438416,1773623446168,-2889.5402,0.00018467,2]
[408438423,1773624328130,897.13,8.436e-05,2]
[408438424,1773624328316,897.13,8.88e-05,2]
[408438425,1773624328537,897.13,9.324e-05,2]
[408438426,1773624328780,897.13,9.768e-05,2]
[408438427,1773624329008,897.13,0.00010211,2]
[408438428,1773624329230,897.13,0.00010655,2]
[408438429,1773624329454,897.13,0.00011099,2]
[408438431,1773624610126,244.0,0.00011543,2]
[408438436,1773624631981,-283.16920607,0.00011543,2]
[408438437,1773624632099,-613.96079393,0.00011543,2]
[408438438,1773624632109,-897.13,0.00011987,2]
[408438439,1773624632119,-897.13,0.00012431,2]
[408438440,1773624632128,-897.13,0.00012875,2]
[408438441,1773624632137,-897.13,0.00013319,2]
[408438442,1773624632147,-897.13,0.00013763,2]
[408438443,1773624632156,-897.13,0.00014207,2]
[408438444,1773624632166,-897.13,0.00014651,2]